bitfinex/quotes_ETHUSD_20250810
["timestamp","ask_amount","ask_price","bid_price","bid_amount"]
[1754826373506,1.2148,4216.4,4216.3,2.37174191]
[1754826373693,1.2148,4216.4,4216.2,0.1184]
[1754826373878,1.2148,4216.3,4215.9,1.26510534]
[1754826374077,1.3332,4216.2,4215.6,1.38350534]
[1754826374306,1.2148,4216.1,4215.7,2.3720853]
[1754826374530,0.1184,4216.2,4215.7,2.3720853]
[1754826374710,1.2148,4216.0,4215.7,2.3720853]
[1754826375023,1.2148,4215.9,4215.2,1.26510534]
[1754826375190,1.3332,4215.8,4215.4,2.37221205]
[1754826375505,1.2148,4215.7,4215.3,5.37229949]
[1754826375706,1.2148,4215.6,4215.4,2.37224725]
[1754826375909,0.1184,4215.8,4215.4,2.37219923]
[1754826376105,1.2148,4215.5,4215.4,2.37219923]
[1754826378004,1.2148,4215.5,4215.1,0.1194]
[1754826378197,1.1925,4215.4,4215.1,0.1194]
[1754826378400,1.1925,4215.3,4215.1,0.001]
[1754826378910,1.1925,4215.2,4215.1,0.001]
[1754826380397,0.1184,4215.4,4215.1,0.001]
[1754826380596,0.1184,4215.4,4215.2,2.37236667]
[1754826380810,1.1925,4215.3,4215.1,2.37341121]
[1754826381108,0.1184,4215.4,4215.1,0.001]
[1754826381281,4.366,4215.9,4215.1,0.001]
[1754826381481,0.1184,4215.6,4215.1,0.001]
[1754826381711,0.1184,4215.6,4215.5,2.37219784]
[1754826381880,0.5804,4215.6,4215.5,2.37219784]
[1754826382599,0.1184,4215.6,4215.5,2.37219784]
[1754826383278,4.366,4215.9,4215.3,2.37229611]
[1754826383477,4.366,4215.9,4215.7,2.3720853]
[1754826383478,0.1184,4215.8,4215.7,2.3720853]
[1754826384105,0.1204,4216.2,4215.6,0.1184]
[1754826384505,0.1204,4216.2,4216.1,2.37186024]
[1754826389413,0.002,4216.2,4216.1,2.37186024]
[1754826389833,0.002,4216.2,4216.1,6.57906024]
[1754826390719,0.002,4216.2,4216.1,6.12646024]
[1754826391719,0.002,4216.2,4216.1,5.37186024]
[1754826392091,1.1945,4216.2,4216.1,5.37186024]
[1754826393313,0.002,4216.2,4216.1,5.37186024]
[1754826394235,0.464,4216.2,4216.1,5.37186024]
[1754826394725,0.464,4216.2,4216.1,2.37186024]
[1754826394917,0.464,4216.2,4215.7,0.1184]
[1754826394918,1.1945,4216.2,4216.0,2.37191516]
[1754826395117,0.464,4216.2,4215.8,3.0]
[1754826395320,1.1925,4216.1,4216.0,2.3719165]
[1754826397316,0.462,4216.1,4216.0,2.3719165]
[1754826397508,1.1925,4216.1,4216.0,2.3719165]
[1754826399302,1.1925,4216.1,4215.9,2.37195448]
[1754826399530,1.1925,4216.1,4216.0,2.3719165]
[1754826400305,1.1925,4216.1,4215.6,0.001]
[1754826400529,1.1925,4216.0,4215.6,5.37312783]
[1754826400808,1.1925,4216.0,4215.9,2.37197276]
[1754826401013,0.462,4216.0,4215.9,2.37197276]
[1754826401329,0.002,4216.2,4215.9,2.37197276]
[1754826401634,0.002,4216.2,4215.9,0.02371972]
[1754826401823,0.002,4216.2,4216.1,2.37186024]
[1754826402015,0.002,4216.2,4216.0,2.37190222]
[1754826402326,0.002,4216.2,4216.1,2.37186024]
[1754826404574,0.002,4216.2,4216.1,3.69746024]
[1754826404917,0.002,4216.2,4216.1,2.49026024]
[1754826405827,1.1945,4216.2,4215.9,2.37197276]
[1754826406016,0.462,4216.1,4215.9,2.37197276]
[1754826406638,0.462,4216.1,4216.0,2.3719165]
[1754826407230,0.7325,4216.2,4215.8,2.37202326]
[1754826407812,0.002,4216.2,4215.7,3.1184]
[1754826408029,1.1793,4216.1,4215.8,2.3719769]
[1754826408229,0.7132,4216.1,4215.9,2.37195884]
[1754826408431,0.4661,4216.0,4215.9,2.37195884]
[1754826410056,0.002,4216.2,4215.9,2.37195884]
[1754826410257,0.4681,4216.2,4215.9,2.37195884]
[1754826410754,0.002,4216.2,4215.9,2.37195884]
[1754826410954,0.4661,4216.1,4216.0,2.37189985]
[1754826411440,0.002,4216.2,4215.9,2.37197276]
[1754826411636,0.002,4216.2,4216.0,2.37187362]
[1754826412077,0.4681,4216.2,4216.0,2.37187362]
[1754826412248,0.4681,4216.2,4215.9,4.26510534]
[1754826412550,0.4681,4216.2,4215.9,1.26510534]
[1754826412551,0.002,4216.2,4215.9,1.26510534]
[1754826412745,0.4681,4216.2,4215.9,1.26510534]
[1754826413132,0.4681,4216.2,4215.9,4.26510534]
[1754826413335,0.4681,4216.2,4216.1,2.37186024]
[1754826413529,0.002,4216.2,4216.1,2.37186024]
[1754826414575,0.4681,4216.2,4216.0,2.3719088]
[1754826415130,0.4681,4216.2,4215.9,1.26510534]
[1754826415729,0.002,4216.2,4216.1,2.37186024]
[1754826417149,3.887,4216.2,4216.1,2.37186024]
[1754826419440,3.887,4216.2,4216.1,3.06956024]
[1754826419670,3.887,4216.2,4216.1,3.49896024]
[1754826420335,3.837,4216.2,4216.1,3.06956024]
[1754826420541,3.837,4216.2,4216.1,2.37186024]
[1754826420736,3.883,4216.3,4216.1,2.37181493]
[1754826420971,0.4661,4216.2,4216.1,2.37181493]
[1754826421162,1.1793,4216.2,4216.1,2.37181493]
[1754826421541,0.4661,4216.2,4216.1,2.37181493]
[1754826421742,3.883,4216.3,4216.2,2.37180399]
[1754826422981,5.0623,4216.3,4216.0,1.2692386]
[1754826423137,4.5962,4216.3,4216.2,2.37180399]
[1754826423345,3.883,4216.3,4216.2,2.37180399]
[1754826423570,4.0014,4216.3,4216.2,2.37180399]
[1754826423771,4.0004,4216.3,4216.2,2.37180399]
[1754826423982,4.4665,4216.3,4216.2,2.37180399]
[1754826424359,0.5845,4216.3,4216.2,2.37180399]
[1754826424552,4.4665,4216.3,4216.2,2.37180399]
[1754826425343,4.0004,4216.3,4216.2,2.37180399]
[1754826425542,0.1184,4216.3,4216.2,2.37180399]
[1754826425743,3.9984,4216.3,4216.2,2.37180399]
[1754826426163,3.88,4216.3,4216.2,2.37180399]
[1754826426443,0.002,4216.7,4216.6,2.37157899]
[1754826426659,3.882,4216.7,4216.6,2.37157899]
[1754826427271,0.002,4216.7,4216.6,2.37157899]
[1754826427453,0.002,4216.7,4216.6,7.76791759]
[1754826427651,0.002,4216.7,4216.6,6.49867899]
[1754826428074,0.002,4216.7,4216.6,5.37157899]
[1754826428241,0.002,4216.7,4216.6,7.04867899]
[1754826428642,0.002,4216.7,4216.6,5.37157899]
[1754826429349,0.002,4216.7,4216.6,6.49867899]
[1754826430172,0.002,4216.7,4216.6,5.37157899]
[1754826432555,0.002,4216.7,4216.6,6.49867899]
[1754826432750,0.002,4216.7,4216.6,6.06927899]
[1754826433563,0.002,4216.7,4216.6,5.37157899]
[1754826433769,0.002,4216.7,4216.6,6.63671648]
[1754826435176,0.002,4216.7,4216.6,5.37157899]
[1754826435682,0.002,4216.7,4216.6,6.63671648]
[1754826440593,1.1312,4216.7,4216.6,5.37157899]
[1754826441485,0.4658,4216.7,4216.6,5.37157899]
[1754826441981,0.002,4216.7,4216.6,5.37157899]
[1754826443389,0.4658,4216.7,4216.6,5.37157899]
[1754826443591,1.1312,4216.7,4216.6,5.37157899]
[1754826443887,1.1312,4216.7,4216.5,2.49003335]
[1754826444096,1.1292,4216.6,4216.5,2.49003335]
[1754826444303,1.1292,4216.6,4216.5,0.1184]
[1754826444605,1.1292,4216.6,4216.5,2.37163524]
[1754826444969,0.002,4216.7,4216.2,0.1184]
[1754826445158,0.002,4216.7,4216.1,1.26613749]
[1754826445159,1.2476,4216.6,4216.1,4.26613749]
[1754826445364,0.5822,4216.6,4216.2,5.39552202]
[1754826445608,0.1184,4216.6,4216.5,2.37163524]
[1754826445925,0.002,4216.7,4216.6,2.37157899]
[1754826446127,0.002,4216.7,4216.6,5.37157899]
[1754826446325,0.002,4216.7,4216.6,6.54677899]
[1754826447788,0.002,4216.7,4216.6,6.10377899]
[1754826447987,0.002,4217.0,4216.9,2.37141027]
[1754826448192,0.002,4217.0,4216.9,9.26312437]
[1754826448432,0.002,4217.0,4216.9,9.68241027]
[1754826448633,0.002,4217.0,4216.9,10.41461027]
[1754826449033,0.002,4217.0,4216.9,10.96461027]
[1754826449665,0.002,4217.0,4216.9,12.64425445]
[1754826450628,0.002,4217.0,4216.9,7.60105445]
[1754826450828,0.002,4217.0,4216.9,9.78741027]
[1754826451508,0.002,4217.0,4216.9,10.96261027]
[1754826451706,1e-08,4217.6,4217.5,2.37107291]
[1754826451909,1e-08,4217.6,4217.5,9.25978363]
[1754826452108,1e-08,4217.6,4217.5,10.41127291]
[1754826452307,1e-08,4217.6,4217.5,5.37107291]
[1754826452517,0.46380001,4217.6,4217.5,9.23507291]
[1754826452712,0.46380001,4217.6,4217.5,5.37107291]
[1754826452923,1e-08,4217.6,4217.5,5.37107291]
[1754826453757,1e-08,4217.6,4217.5,7.34273796]
[1754826453961,1.12920001,4217.6,4217.5,5.37107291]
[1754826455653,1.12920001,4217.6,4217.5,3.0]
[1754826456432,1.12920001,4217.6,4217.1,5.37129781]
[1754826456633,1.1292,4217.5,4217.0,2.37135283]
[1754826456833,1.1292,4217.4,4216.8,5.37146481]
[1754826457171,0.4638,4217.3,4217.2,2.37124158]
[1754826457732,0.46380001,4217.6,4217.5,2.37107291]
[1754826457946,1e-08,4217.6,4217.5,2.37107291]
[1754826458144,1e-08,4217.6,4217.5,2.39478363]
[1754826458529,1e-08,4217.6,4217.5,5.37107291]
[1754826458730,1e-08,4217.6,4217.5,5.53147291]
[1754826458933,1.12920001,4217.6,4217.5,3.0]
[1754826460145,1.12920001,4217.6,4217.5,5.37107291]
[1754826460354,1.12920001,4217.6,4217.5,3.0]
[1754826461256,1.12920001,4217.6,4217.1,3.84887655]
[1754826461551,1.1292,4217.5,4217.2,2.37122788]
[1754826461762,1.1292,4217.4,4217.3,2.37114565]
[1754826462373,1.1292,4217.4,4217.1,2.48967581]
[1754826462662,1.1292,4217.3,4217.2,2.37123572]
[1754826463769,1.1292,4217.3,4216.9,3.0]
[1754826463933,1e-08,4217.6,4216.4,3.857]
[1754826463934,1.2476,4217.2,4216.7,3.0]
[1754826464121,1.2476,4217.2,4216.9,2.37139403]
[1754826464122,1.1292,4217.1,4216.9,2.37139403]
[1754826464460,1.1292,4217.0,4216.9,2.37139403]
[1754826465860,0.1184,4217.2,4217.1,2.37129781]
[1754826466223,0.11840001,4217.6,4217.5,2.37107291]
[1754826466864,0.11840001,4217.6,4217.4,2.37112037]
[1754826467022,0.58220001,4217.6,4217.4,2.37112037]
[1754826467566,1.1141,4217.5,4217.0,0.1184]
[1754826467861,1.1141,4217.4,4217.2,2.37119862]
[1754826468056,0.11840001,4217.6,4217.2,2.37119862]
[1754826468057,1.1141,4217.3,4217.2,2.37119862]
[1754826469176,0.4305,4217.3,4217.2,2.37119862]
[1754826469355,0.11840001,4217.6,4217.4,2.37110465]
[1754826469533,0.11840001,4217.6,4217.2,2.37119862]
[1754826469733,0.11840001,4217.6,4217.2,2.3711933]
[1754826469936,1.1141,4217.5,4217.2,2.3711933]
[1754826470135,0.6836,4217.5,4217.2,2.3711933]
[1754826470471,1.1141,4217.4,4217.0,2.37135302]
[1754826470765,1.2325,4217.3,4216.8,0.9194]
[1754826471064,0.1184,4216.9,4216.8,0.801]
[1754826471236,1.2325,4216.9,4216.8,0.801]
[1754826472734,3.60391027,4216.9,4216.8,0.801]
[1754826472936,4.20143392,4216.9,4216.8,0.001]
[1754826473844,1.83002365,4216.9,4216.8,0.001]
[1754826474048,1.2325,4216.9,4216.8,0.001]
[1754826474249,0.1184,4216.9,4216.8,0.001]
[1754826474743,5.0845,4216.9,4216.8,0.001]
[1754826481356,7.45591027,4216.9,4216.8,0.001]
[1754826482056,3.849,4216.9,4216.8,0.001]
[1754826482262,3.9674,4216.9,4216.8,0.001]
[1754826482457,0.1184,4216.9,4216.8,0.001]
[1754826482663,3.9664,4216.9,4216.8,0.001]
[1754826483169,0.1184,4216.9,4216.8,0.001]
[1754826483504,3.9664,4216.9,4216.8,0.001]
[1754826483998,8.10380923,4216.9,4216.8,0.001]
[1754826484982,6.98870923,4216.9,4216.8,0.001]
[1754826485371,7.33251027,4216.9,4216.8,0.001]
[1754826485576,7.45091027,4216.9,4216.8,0.001]
[1754826487390,7.44991027,4216.9,4216.8,0.001]
[1754826488989,7.99991027,4216.9,4216.8,0.001]
[1754826489287,8.22162806,4216.9,4216.8,0.001]
[1754826489490,9.29904868,4216.9,4216.8,0.001]
[1754826489712,2.92163524,4216.5,4216.4,0.001]
[1754826489987,6.88503524,4216.5,4216.4,0.001]
[1754826490484,7.99913524,4216.5,4216.4,0.001]
[1754826490856,4.15413524,4216.5,4216.4,0.001]
[1754826491073,8.5752048,4216.5,4216.4,0.001]
[1754826492288,2.37140133,4217.0,4216.4,0.001]
[1754826492289,0.11833875,4217.4,4216.4,0.001]
[1754826492489,1e-08,4217.6,4216.4,0.001]
[1754826492490,0.1184,4216.5,4216.4,0.001]
[1754826492799,3.9624,4216.5,4216.4,0.001]
[1754826495414,6.76453524,4216.5,4216.4,0.001]
[1754826495618,8.08153436,4216.5,4216.4,0.001]
[1754826510227,8.85337279,4216.5,4216.4,0.001]
[1754826510725,11.85337279,4216.5,4216.4,0.001]
[1754826510928,11.85337279,4216.5,4216.4,1e-08]
[1754826511504,5.92169149,4216.4,4216.3,1e-08]
[1754826511825,2.92186024,4216.1,4216.0,0.001]
[1754826511998,6.97769867,4216.1,4216.0,0.001]
[1754826512200,8.10809867,4216.1,4216.0,0.001]
[1754826513712,8.22649867,4216.1,4216.0,0.001]
[1754826516326,8.22649867,4216.1,4215.9,1e-08]
[1754826516327,5.9219165,4216.0,4215.9,1e-08]
[1754826516494,7.20357957,4216.0,4215.9,1e-08]
[1754826516694,8.33397957,4216.0,4215.9,1e-08]
[1754826522035,8.11214114,4216.0,4215.9,1e-08]
[1754826522244,8.33386506,4216.0,4215.9,1e-08]
[1754826527217,7.64216506,4216.0,4215.9,1e-08]
[1754826527620,6.65346506,4216.0,4215.9,1e-08]
[1754826527824,10.48146506,4216.0,4215.9,1e-08]
[1754826528025,11.03146506,4216.0,4215.9,1e-08]
[1754826528228,6.42164042,4216.0,4215.9,1e-08]
[1754826528544,6.54004042,4216.0,4215.9,1.07970001]
[1754826528746,6.3183165,4216.0,4215.9,1.07970001]
[1754826530847,6.3183165,4216.0,4215.9,1e-08]
[1754826531221,6.7606165,4216.0,4215.9,1e-08]
[1754826531420,7.7915419,4216.0,4215.9,1e-08]
[1754826532135,7.3492419,4216.0,4215.9,1e-08]
[1754826532520,6.3183165,4216.0,4215.9,1.07970001]
[1754826534324,3.9464,4216.0,4215.9,1.07970001]
[1754826542438,3.9464,4216.0,4215.9,0.63080001]
[1754826544757,3.9464,4216.0,4215.9,1e-08]
[1754826545146,6.3183165,4216.0,4215.9,1e-08]
[1754826546452,3.9464,4216.0,4215.9,1e-08]
[1754826546838,6.3183165,4216.0,4215.9,1e-08]
[1754826547170,6.7606165,4216.0,4215.9,1e-08]
[1754826547762,8.40219359,4216.0,4215.9,1e-08]
[1754826548532,7.72369359,4216.0,4215.9,1e-08]
[1754826548742,8.40219359,4216.0,4215.9,1e-08]
[1754826549554,7.28139359,4216.0,4215.9,1e-08]
[1754826550464,7.72369359,4216.0,4215.9,1e-08]
[1754826552943,7.28139359,4216.0,4215.9,1e-08]
[1754826554377,7.28339359,4216.0,4215.9,1e-08]
[1754826555655,4.91147709,4216.0,4215.9,1e-08]
[1754826556370,3.9484,4216.0,4215.9,1e-08]
[1754826556679,3.9484,4216.0,4215.9,0.63080001]
[1754826556989,3.9314,4216.0,4215.9,3.45167277]
[1754826557148,3.9314,4216.0,4215.9,1.07970001]
[1754826557887,3.9314,4216.0,4215.9,3.45167277]
[1754826558449,3.9314,4216.0,4215.9,1.07970001]
[1754826559861,3.9314,4216.0,4215.9,0.63080001]
[1754826561586,3.9314,4216.0,4215.9,1e-08]
[1754826562267,3.9314,4216.0,4215.9,3.50817277]
[1754826563361,3.9314,4216.0,4215.9,2.37197277]
[1754826563567,3.9314,4216.0,4215.9,3.50817277]
[1754826565360,3.9274,4216.0,4215.9,3.50817277]
[1754826565993,3.9274,4216.0,4215.9,1.13620001]
[1754826566294,3.9274,4216.0,4215.9,3.50817277]
[1754826566490,3.9274,4216.0,4215.9,1e-08]
[1754826566882,4.3823,4216.0,4215.9,1e-08]
[1754826567192,5.0065,4216.0,4215.9,1e-08]
[1754826567390,7.3784165,4216.0,4215.9,1e-08]
[1754826567685,8.3534424,4216.0,4215.9,1e-08]
[1754826571766,8.57565904,4216.0,4215.9,1e-08]
[1754826573201,8.57565904,4216.0,4215.8,0.001]
[1754826573202,2.9227607,4214.5,4214.4,0.1184]
[1754826573367,2.9227607,4214.5,4214.0,1e-08]
[1754826573368,5.92298592,4214.1,4214.0,1e-08]
[1754826573700,13.56660609,4214.1,4214.0,1e-08]
[1754826573896,14.76963209,4214.1,4214.0,1e-08]
[1754826574271,14.76839949,4214.1,4214.0,1e-08]
[1754826574701,2.37377453,4212.7,4212.6,0.04]
[1754826575010,6.29417453,4212.7,4212.6,0.04]
[1754826575878,3.9204,4212.7,4212.6,0.04]
[1754826576274,0.1184,4212.7,4212.6,0.04]
[1754826576480,3.80217109,4212.7,4212.6,0.04]
[1754826578386,4.25707109,4212.7,4212.6,0.04]
[1754826578777,3.80217109,4212.7,4212.6,0.04]
[1754826578983,4.25707109,4212.7,4212.6,0.04]
[1754826579589,3.80217109,4212.7,4212.6,0.04]
[1754826579895,4.25707109,4212.7,4212.6,0.04]
[1754826580980,6.63084562,4212.7,4212.6,0.04]
[1754826581194,4.25707109,4212.7,4212.6,0.04]
[1754826581484,6.63084562,4212.7,4212.6,0.04]
[1754826581896,4.25707109,4212.7,4212.6,0.04]
[1754826582102,3.80217109,4212.7,4212.6,0.04]
[1754826582473,3.80217109,4212.7,4212.4,1.1262]
[1754826583005,3.80217109,4212.7,4212.1,0.001]
[1754826583006,3.80217109,4212.7,4212.1,2.3751062]
[1754826583222,0.1184,4212.2,4212.1,2.3751062]
[1754826583506,0.1184,4212.2,4212.1,0.001]
[1754826583507,3.9184,4212.2,4212.1,0.001]
[1754826584394,0.55,4211.9,4211.6,0.04]
[1754826584573,5.37433815,4211.7,4211.6,0.04]
[1754826585001,6.45343815,4211.7,4211.6,0.04]
[1754826585319,6.45343815,4211.7,4211.6,1e-08]
[1754826588607,10.80243815,4211.7,4211.6,1e-08]
[1754826588770,12.12091589,4211.7,4211.6,1e-08]
[1754826590283,12.23960187,4211.7,4211.6,1e-08]
[1754826590695,3.0,4212.1,4211.6,1e-08]
[1754826590974,3.799,4212.0,4211.6,1e-08]
[1754826591179,2.37432933,4211.8,4211.7,0.6716]
[1754826591477,6.17332933,4211.8,4211.6,0.46390001]
[1754826591691,3.799,4211.8,4211.6,0.46390001]
[1754826592101,3.799,4211.8,4211.6,1.13550001]
[1754826592349,3.799,4211.8,4211.7,0.6716]
[1754826592813,7.12306882,4212.2,4211.7,1.1355]
[1754826593019,3.799,4212.1,4211.8,1.1355]
[1754826593315,3.799,4212.1,4211.9,0.6716]
[1754826593610,6.17313248,4212.1,4211.9,0.6716]
[1754826593991,6.17311506,4212.1,4211.8,0.4639]
[1754826594201,6.17311506,4212.1,4211.6,0.46390001]
[1754826594403,0.1184,4211.7,4211.6,1e-08]
[1754826594598,3.9164,4211.7,4211.6,1e-08]
[1754826594906,0.1184,4211.7,4211.6,1.13550001]
[1754826595107,3.9164,4211.7,4211.6,1e-08]
[1754826595513,6.29073815,4211.7,4211.6,1e-08]
[1754826596631,3.9164,4211.7,4211.6,1e-08]
[1754826596930,2.49273815,4211.7,4211.6,1e-08]
[1754826597099,6.28973815,4211.7,4211.6,1e-08]
[1754826598028,6.28973815,4211.7,4211.6,0.00100001]
[1754826598029,8.25713459,4211.7,4211.6,0.00100001]
[1754826598396,8.25913459,4211.7,4211.6,0.00100001]
[1754826599597,9.0295046,4211.7,4211.6,0.00100001]
[1754826600306,9.20453393,4211.7,4211.6,0.00100001]
[1754826600505,9.71265354,4211.7,4211.6,0.00100001]
[1754826600733,5.91565354,4211.7,4211.6,0.00100001]
[1754826600909,9.71165354,4211.7,4211.6,0.00100001]
[1754826601109,7.99843393,4211.7,4211.6,0.00100001]
[1754826601417,8.5070774,4211.7,4211.6,0.00100001]
[1754826602613,9.1621774,4211.7,4211.6,0.00100001]
[1754826605499,8.0611774,4211.7,4211.6,0.00100001]
[1754826605706,8.5070774,4211.7,4211.6,0.00100001]
[1754826605906,4.2651774,4211.7,4211.6,0.00100001]
[1754826606222,8.5060774,4211.7,4211.6,0.00100001]
[1754826606612,9.1611774,4211.7,4211.6,0.00100001]
[1754826606820,44.086406,4211.7,4211.6,1e-08]
[1754826607306,42.81431082,4211.7,4211.6,1e-08]
[1754826607731,44.09059244,4211.7,4211.6,1e-08]
[1754826607915,42.81431082,4211.7,4211.6,1e-08]
[1754826608336,2.37462006,4211.2,4211.1,0.001]
[1754826608535,7.37355005,4211.2,4211.1,0.001]
[1754826608743,8.47455005,4211.2,4211.1,0.001]
[1754826608951,9.3255809,4211.2,4211.1,0.001]
[1754826609236,9.3255809,4211.2,4210.6,0.04]
[1754826609237,2.37490203,4210.7,4210.6,0.04]
[1754826609413,7.97076246,4210.7,4210.6,0.04]
[1754826609618,9.38279168,4210.7,4210.6,0.04]
[1754826610213,44.20933796,4210.7,4210.6,1e-08]
[1754826610419,9.76097128,4210.7,4210.6,1e-08]
[1754826610734,13.55497128,4210.7,4210.6,1e-08]
[1754826611336,14.21007128,4210.7,4210.6,1e-08]
[1754826612039,12.93279168,4210.7,4210.6,1e-08]
[1754826612413,12.93279168,4210.7,4210.3,0.001]
[1754826612414,2.37507125,4210.4,4210.3,0.001]
[1754826612640,13.12249744,4210.4,4210.3,0.001]
[1754826612819,14.22349744,4210.4,4210.3,0.001]
[1754826613015,14.77349744,4210.4,4210.3,0.001]
[1754826613640,14.77349744,4210.4,4210.3,1e-08]
[1754826613851,13.49633735,4210.4,4210.3,1e-08]
[1754826614514,13.62943753,4210.4,4210.3,1e-08]
[1754826615115,13.49633735,4210.4,4210.3,1e-08]
[1754826615308,13.62938858,4210.4,4210.3,1e-08]
[1754826616418,17.62938858,4210.4,4210.3,1e-08]
[1754826616839,17.74778858,4210.4,4210.3,1e-08]
[1754826617034,17.75585264,4210.4,4210.3,1e-08]
[1754826617428,17.62280141,4210.4,4210.3,1e-08]
[1754826618549,17.62382435,4210.4,4210.3,1e-08]
[1754826620017,47.62382435,4210.4,4210.3,1e-08]
[1754826620857,47.62382435,4210.4,4208.6,1e-08]
[1754826620858,2.9260306,4208.7,4208.6,1e-08]
[1754826621160,46.05687554,4208.7,4208.6,1e-08]
[1754826621331,47.10667554,4208.7,4208.6,1e-08]
[1754826621531,47.11473994,4208.7,4208.6,1e-08]
[1754826622459,51.11473994,4208.7,4208.6,1e-08]
[1754826622656,53.43178062,4208.7,4208.6,1e-08]
[1754826622833,0.55,4208.5,4207.5,0.6448]
[1754826623052,5.37659528,4207.7,4207.5,0.6448]
[1754826623240,10.44876652,4207.7,4207.2,0.4567]
[1754826623556,2.37682123,4207.3,4207.2,0.3967]
[1754826623746,6.390349,4207.3,4207.2,0.3967]
[1754826623952,6.390349,4207.3,4207.2,1.0415]
[1754826624363,6.16882123,4207.3,4207.2,1.0415]
[1754826624734,6.38954622,4207.3,4207.2,1.0415]
[1754826624935,6.16882123,4207.3,4207.2,1.0415]
[1754826625363,6.16882123,4207.3,4207.2,0.6448]
[1754826625565,4.86718068,4207.3,4206.6,0.04]
[1754826625760,0.22062435,4207.2,4206.6,0.4967]
[1754826625963,2.3771493,4206.8,4206.6,0.4967]
[1754826626263,6.16916024,4206.7,4206.6,0.04]
[1754826626636,3.792,4206.7,4206.6,0.04]
[1754826626842,3.792,4206.7,4206.6,1.1415]
[1754826627048,6.16916024,4206.7,4206.6,1.1415]
[1754826627377,3.791,4206.7,4206.6,1.1415]
[1754826627943,3.791,4206.7,4206.6,3.51871675]
[1754826628136,3.791,4206.7,4206.6,1.1415]
[1754826630057,0.182585,4207.3,4206.6,1.1415]
[1754826630239,2.37647749,4208.0,4206.6,1.1415]
[1754826630240,2.37709002,4206.9,4206.7,1.1015]
[1754826630561,0.22037449,4207.8,4206.7,0.4567]
[1754826630562,2.37710373,4206.8,4206.7,0.4567]
[1754826630775,3.9102,4206.8,4206.6,0.04]
[1754826631083,2.37716024,4206.7,4206.6,0.04]
[1754826631640,0.1192,4206.8,4206.6,1.1415]
[1754826631883,3.791,4206.7,4206.6,0.04]
[1754826632534,3.791,4206.7,4206.6,1.1415]
[1754826632749,6.16816024,4206.7,4206.6,1.1415]
[1754826632953,3.791,4206.7,4206.6,1.1415]
[1754826633453,0.1192,4206.8,4206.6,1.1415]
[1754826633674,0.1192,4206.8,4206.6,0.04]
[1754826633675,3.79,4206.7,4206.6,0.04]
[1754826634167,3.79,4206.7,4206.6,1.1415]
[1754826634364,3.79,4206.7,4206.6,0.04]
[1754826634559,6.16716024,4206.7,4206.6,0.04]
[1754826635284,46.3893012,4206.7,4206.6,1e-08]
[1754826635494,47.754677,4206.7,4206.6,1e-08]
[1754826635785,51.1263689,4206.7,4206.6,1e-08]
[1754826636160,47.1263689,4206.7,4206.6,1e-08]
[1754826637413,47.97494439,4206.7,4206.6,1e-08]
[1754826637767,47.97594439,4206.7,4206.6,1e-08]
[1754826638276,47.34795006,4206.7,4206.6,1e-08]
[1754826638589,48.19646535,4206.7,4206.6,1e-08]
[1754826639290,52.19646535,4206.7,4206.6,1e-08]
[1754826639454,51.34788986,4206.7,4206.6,1e-08]
[1754826639662,2.92772546,4205.7,4205.6,1e-08]
[1754826639897,10.46884389,4205.7,4205.6,1e-08]
[1754826640089,40.97720116,4205.7,4205.6,1e-08]
[1754826640259,42.66244096,4205.7,4205.6,1e-08]
[1754826641082,46.66244096,4205.7,4205.6,1e-08]
[1754826641290,5.37795163,4205.3,4204.6,1e-08]
[1754826641493,2.92829096,4204.7,4204.6,1e-08]
[1754826641702,10.86422941,4204.7,4204.6,1e-08]
[1754826641861,14.65422941,4204.7,4204.6,1e-08]
[1754826642804,7.86422941,4204.7,4204.6,1e-08]
[1754826642971,11.14587214,4204.7,4204.6,1.10150001]
[1754826643292,10.92529096,4204.7,4204.6,1e-08]
[1754826643506,4.757,4204.7,4204.6,0.64480001]
[1754826643689,4.757,4204.7,4204.6,1.10150001]
[1754826643990,10.92529096,4204.7,4204.6,1.10150001]
[1754826644164,10.92529096,4204.7,4204.6,1e-08]
[1754826644364,12.25563843,4204.7,4204.6,1e-08]
[1754826644592,12.45193843,4204.7,4204.6,1e-08]
[1754826644767,17.58400006,4204.7,4204.6,1e-08]
[1754826645091,18.2191306,4204.7,4204.6,1e-08]
[1754826645272,47.70320006,4204.7,4204.6,1e-08]
[1754826646458,48.55004079,4204.7,4204.6,1e-08]
[1754826646664,47.70320006,4204.7,4204.6,1e-08]
[1754826646868,48.54980643,4204.7,4204.6,1e-08]
[1754826647189,44.9401887,4204.7,4204.6,1e-08]
[1754826647407,46.71458806,4204.7,4204.6,1e-08]
[1754826647705,46.83378806,4204.7,4204.6,1e-08]
[1754826647914,16.83378806,4204.7,4204.6,1e-08]
[1754826648091,13.04378806,4204.7,4204.6,1e-08]
[1754826648409,11.79838513,4204.7,4204.6,1e-08]
[1754826648564,11.79838513,4204.7,4204.6,1.08200001]
[1754826648565,8.16344059,4204.7,4204.6,1.08200001]
[1754826648773,9.35463169,4204.7,4204.6,1.08200001]
[1754826648973,5.56463169,4204.7,4204.6,1.08200001]
[1754826649277,8.846588,4204.7,4204.6,1.08200001]
[1754826649489,9.35507758,4204.7,4204.6,1.08200001]
[1754826649683,11.73336854,4204.7,4204.6,1.08200001]
[1754826649981,9.35507758,4204.7,4204.6,1.08200001]
[1754826650180,9.0674843,4204.7,4204.6,1.08200001]
[1754826650388,11.9547433,4204.7,4204.6,1.08200001]
[1754826650702,0.80855604,4204.7,4204.6,1.08200001]
[1754826650918,0.50896804,4205.3,4204.6,3.46034753]
[1754826651215,3.79,4205.2,4204.7,1.082]
[1754826651371,4.29896804,4205.2,4204.7,0.6479]
[1754826651569,4.29896804,4205.2,4204.6,1e-08]
[1754826651570,4.12240791,4205.2,4204.6,1e-08]
[1754826651773,2.37812937,4205.0,4204.6,1e-08]